bitfinex/quotes_BTCUSD_20250908
["timestamp","ask_amount","ask_price","bid_price","bid_amount"]
[1757331598397,0.4949705,111870.0,111860.0,1e-08]
[1757331598603,0.18392893,111870.0,111860.0,1e-08]
[1757331599280,0.4949705,111870.0,111860.0,1e-08]
[1757331601222,0.18392893,111870.0,111860.0,1e-08]
[1757331601482,0.4949705,111870.0,111860.0,1e-08]
[1757331602757,0.18392893,111870.0,111860.0,1e-08]
[1757331604728,0.18392893,111870.0,111860.0,0.00058001]
[1757331604956,0.18191893,111870.0,111860.0,0.00058001]
[1757331605550,0.18392893,111870.0,111860.0,0.00058001]
[1757331605958,0.21077648,111870.0,111860.0,0.00058001]
[1757331609449,0.20876648,111870.0,111860.0,0.00058001]
[1757331610087,0.21077648,111870.0,111860.0,0.00058001]
[1757331611280,0.21077648,111870.0,111860.0,1e-08]
[1757331611951,0.21077648,111870.0,111860.0,0.00058001]
[1757331612904,0.20562648,111870.0,111860.0,0.31162158]
[1757331613143,0.17876296,111880.0,111860.0,0.64697512]
[1757331613354,0.17876296,111880.0,111870.0,0.31104157]
[1757331613571,0.17876296,111880.0,111870.0,0.46724019]
[1757331613778,0.17876296,111880.0,111870.0,0.46782019]
[1757331618271,0.17876296,111880.0,111870.0,0.95800069]
[1757331618893,0.17876296,111880.0,111870.0,0.89371806]
[1757331619306,0.17876296,111880.0,111870.0,0.64691841]
[1757331619853,0.17874698,111890.0,111870.0,0.902657]
[1757331620063,0.17876296,111880.0,111870.0,0.49933944]
[1757331620268,0.17876296,111880.0,111870.0,0.61809438]
[1757331620490,0.17876296,111880.0,111870.0,0.69856098]
[1757331620691,0.17876296,111880.0,111870.0,0.69892098]
[1757331621322,0.17876296,111880.0,111870.0,1.00996255]
[1757331621549,0.17874698,111890.0,111870.0,1.00996255]
[1757331621763,0.17974698,111890.0,111880.0,0.37523047]
[1757331621978,0.17974698,111890.0,111880.0,0.46714646]
[1757331622119,0.17974698,111890.0,111880.0,0.86772646]
[1757331623746,0.17874698,111890.0,111880.0,0.86772646]
[1757331624198,0.17874698,111890.0,111880.0,0.55610489]
[1757331624393,0.18192698,111890.0,111880.0,0.55668489]
[1757331624659,0.18192698,111890.0,111880.0,0.86772646]
[1757331625053,0.17874698,111890.0,111880.0,0.87665177]
[1757331625278,0.17974698,111890.0,111880.0,0.81246287]
[1757331635730,0.17974698,111890.0,111880.0,0.99158583]
[1757331636834,0.17974698,111890.0,111880.0,0.81282287]
[1757331637054,0.17974698,111890.0,111880.0,0.99158583]
[1757331637500,0.17974698,111890.0,111880.0,0.81282287]
[1757331638142,0.17974698,111890.0,111880.0,0.99158583]
[1757331638358,0.17974698,111890.0,111880.0,0.81282287]
[1757331638575,0.17974698,111890.0,111880.0,0.81246287]
[1757331639456,0.17974698,111890.0,111880.0,0.41246287]
[1757331640326,0.17974698,111890.0,111880.0,0.47665177]
[1757331642327,0.17974698,111890.0,111880.0,0.87665177]
[1757331648331,0.17974698,111890.0,111880.0,0.81246287]
[1757331651931,0.18282698,111890.0,111880.0,0.5014213]
[1757331652166,0.18482698,111890.0,111880.0,0.1014213]
[1757331652408,0.18482698,111890.0,111880.0,0.1008413]
[1757331652630,0.18282698,111890.0,111880.0,0.1014213]
[1757331652864,0.17974698,111890.0,111880.0,0.41246287]
[1757331653778,0.18282698,111890.0,111880.0,0.41246287]
[1757331656128,0.17974698,111890.0,111880.0,0.81246287]
[1757331656900,0.17974698,111890.0,111880.0,0.5014213]
[1757331657104,0.17974698,111890.0,111880.0,0.81246287]
[1757331658695,0.17974698,111890.0,111880.0,0.5014213]
[1757331658890,0.18282698,111890.0,111880.0,0.81246287]
[1757331660493,0.18282698,111890.0,111880.0,0.41224303]
[1757331660713,0.17974698,111890.0,111880.0,0.41224303]
[1757331660936,0.17974698,111890.0,111880.0,0.72306476]
[1757331661785,0.17974698,111890.0,111880.0,0.80353136]
[1757331662861,0.17974698,111890.0,111880.0,0.98229432]
[1757331663773,0.17974698,111890.0,111880.0,0.80353136]
[1757331664493,0.17974698,111890.0,111880.0,1.20353136]
[1757331664916,0.17974698,111890.0,111880.0,1.20389136]
[1757331666404,0.17974698,111890.0,111880.0,1.20353136]
[1757331668836,0.17974698,111890.0,111880.0,1.38229432]
[1757331669041,0.17974698,111890.0,111880.0,1.38265432]
[1757331669195,0.17974698,111890.0,111880.0,1.20353136]
[1757331670045,0.18282698,111890.0,111880.0,1.20353136]
[1757331670402,0.17974698,111890.0,111880.0,1.20353136]
[1757331670825,0.18282698,111890.0,111880.0,1.20353136]
[1757331671022,0.18482698,111890.0,111880.0,0.89270963]
[1757331672199,0.18282698,111890.0,111880.0,0.89270963]
[1757331676397,0.18282698,111890.0,111880.0,1.20353136]
[1757331676812,0.17974698,111890.0,111880.0,1.20353136]
[1757331677024,0.17974698,111890.0,111880.0,1.20389136]
[1757331677238,0.17974698,111890.0,111880.0,0.5818879]
[1757331677478,0.17974698,111890.0,111880.0,1.38229432]
[1757331677717,0.17974698,111890.0,111880.0,1.38265432]
[1757331678135,0.17874698,111890.0,111880.0,1.38229432]
[1757331678438,0.17874698,111890.0,111880.0,1.20353136]
[1757331678681,0.17974698,111890.0,111880.0,1.20353136]
[1757331680969,0.17874698,111890.0,111880.0,1.20353136]
[1757331685925,0.17873285,111900.0,111890.0,0.17874688]
[1757331686130,0.17873285,111900.0,111890.0,0.89288633]
[1757331686345,0.17873285,111900.0,111890.0,0.89324633]
[1757331686588,0.17873285,111900.0,111890.0,1.29288633]
[1757331686812,0.17873285,111900.0,111890.0,1.0625312]
[1757331688407,0.17873285,111900.0,111890.0,1.37335293]
[1757331688853,0.17873285,111900.0,111890.0,0.75206947]
[1757331689086,0.17873285,111900.0,111890.0,0.75170947]
[1757331689304,0.17873285,111900.0,111890.0,0.57296259]
[1757331689519,0.18662552,111900.0,111890.0,0.4]
[1757331689729,0.18383285,111900.0,111890.0,0.4]
[1757331689940,0.18383285,111900.0,111890.0,0.71082173]
[1757331690143,0.18383285,111900.0,111890.0,0.31082173]
[1757331690274,0.17874698,111890.0,111880.0,0.67216364]
[1757331690508,0.18186698,111890.0,111880.0,1.16465963]
[1757331690709,0.17874698,111890.0,111880.0,1.34342259]
[1757331690908,0.17874698,111890.0,111880.0,1.47548136]
[1757331694181,0.17874698,111890.0,111880.0,1.65424432]
[1757331694385,0.17874698,111890.0,111880.0,1.47548136]
[1757331695147,0.17874698,111890.0,111880.0,1.21228136]
[1757331701957,0.18186698,111890.0,111880.0,1.21228136]
[1757331702146,0.18384698,111890.0,111880.0,0.09814191]
[1757331702356,0.18384698,111890.0,111880.0,0.39280768]
[1757331707060,0.18384698,111890.0,111880.0,0.38405768]
[1757331719222,0.18384698,111890.0,111880.0,0.31974704]
[1757331720799,0.17874698,111890.0,111880.0,0.80991173]
[1757331721014,0.21750865,111910.0,111890.0,0.17874698]
[1757331721219,0.19065402,111920.0,111900.0,0.89287045]
[1757331721431,0.19065402,111920.0,111900.0,0.64675135]
[1757331721634,0.19065402,111920.0,111910.0,0.37516436]
[1757331721835,0.19065402,111920.0,111910.0,0.37574436]
[1757331722431,0.19070026,111920.0,111910.0,0.37554669]
[1757331723154,0.19170026,111920.0,111910.0,0.06492263]
[1757331723392,0.19170026,111920.0,111910.0,0.37554669]
[1757331723614,0.19070026,111920.0,111910.0,0.37554669]
[1757331723842,0.19273026,111920.0,111910.0,0.06434263]
[1757331724072,0.19273026,111920.0,111910.0,0.37496669]
[1757331727055,0.19273026,111920.0,111910.0,0.37554669]
[1757331727500,0.19273026,111920.0,111910.0,0.37496669]
[1757331727683,0.19273026,111920.0,111910.0,0.37554669]
[1757331727926,0.19273026,111920.0,111910.0,0.31120406]
[1757331730214,0.17871503,111910.0,111900.0,1.04561368]
[1757331730415,0.17871503,111910.0,111900.0,1.35623774]
[1757331730640,0.17871503,111910.0,111900.0,1.35681774]
[1757331735773,0.17871503,111910.0,111900.0,1.35717774]
[1757331736447,0.18768026,111920.0,111910.0,0.17871503]
[1757331736662,0.18768026,111920.0,111910.0,0.64599365]
[1757331737322,0.18768026,111920.0,111910.0,1.04599365]
[1757331737856,0.18768026,111920.0,111910.0,0.73536959]
[1757331738087,0.18768026,111920.0,111910.0,1.04599365]
[1757331739554,0.18768026,111920.0,111910.0,0.86727862]
[1757331742523,0.18768026,111920.0,111910.0,1.04599365]
[1757331742686,0.18768026,111920.0,111910.0,1.04635365]
[1757331743817,0.18768026,111920.0,111910.0,0.86763862]
[1757331744533,0.18768026,111920.0,111910.0,0.86727862]
[1757331746553,0.18768026,111920.0,111910.0,0.55665456]
[1757331746787,0.18768026,111920.0,111910.0,0.86727862]
[1757331749413,0.18768026,111920.0,111910.0,0.80312005]
[1757331751411,0.18768026,111920.0,111910.0,0.88358665]
[1757331753939,0.18768026,111920.0,111910.0,0.57296259]
[1757331754138,0.18768026,111920.0,111910.0,0.88358665]
[1757331757944,0.19085026,111920.0,111910.0,0.88358665]
[1757331758927,0.19300026,111920.0,111910.0,0.80254005]
[1757331759143,0.19300026,111920.0,111910.0,0.40254005]
[1757331759934,0.19300026,111920.0,111910.0,0.40258005]
[1757331762238,0.19300026,111920.0,111910.0,0.40316005]
[1757331762474,0.19085026,111920.0,111910.0,0.40316005]
[1757331762958,0.19085026,111920.0,111910.0,0.80316005]
[1757331763400,0.19085026,111920.0,111910.0,0.40316005]
[1757331763796,0.19085026,111920.0,111910.0,0.80316005]
[1757331764531,0.19300026,111920.0,111910.0,0.80316005]
[1757331764733,0.19300026,111920.0,111910.0,0.49195599]
[1757331764981,0.19300026,111920.0,111910.0,0.80258005]
[1757331765436,0.19300026,111920.0,111910.0,0.80316005]
[1757331765644,0.19300026,111920.0,111910.0,0.88362665]
[1757331765861,0.19300026,111920.0,111910.0,0.88304665]
[1757331770086,0.19300026,111920.0,111910.0,0.80258005]
[1757331770323,0.19300026,111920.0,111910.0,0.80316005]
[1757331770687,0.19300026,111920.0,111910.0,0.80258005]
[1757331771998,0.19300026,111920.0,111910.0,0.40258005]
[1757331774325,0.19300026,111920.0,111910.0,0.40316005]
[1757331776827,0.18768026,111920.0,111910.0,0.40316005]
[1757331779427,0.18768026,111920.0,111910.0,0.483423]
[1757331779582,0.18768026,111920.0,111910.0,0.883423]
[1757331780188,0.19069026,111920.0,111910.0,0.883423]
[1757331780927,0.18768026,111920.0,111910.0,0.883423]
[1757331782477,0.18768026,111920.0,111910.0,0.8834113]
[1757331786151,0.18768026,111920.0,111910.0,1.37273869]
[1757331786982,0.21451292,111920.0,111910.0,1.37273869]
[1757331787531,0.21451292,111920.0,111910.0,1.06212633]
[1757331787782,0.0268789,111920.0,111910.0,2.02371105]
[1757331788004,0.18766291,111940.0,111930.0,0.1786831]
[1757331788225,0.18770916,111940.0,111930.0,0.97285502]
[1757331788452,4.625e-05,111940.0,111930.0,0.89240381]
[1757331789342,4.625e-05,111940.0,111930.0,0.99968111]
[1757331789560,4.625e-05,111940.0,111930.0,1.1405468]
[1757331789765,0.17871339,111940.0,111930.0,1.14949517]
[1757331790951,0.17871339,111940.0,111930.0,0.83888281]
[1757331791417,0.17871339,111940.0,111930.0,0.90311616]
[1757331793950,0.17871339,111940.0,111930.0,0.5925038]
[1757331794587,0.17871339,111940.0,111930.0,0.90311616]
[1757331794804,0.18378339,111940.0,111930.0,0.5925038]
[1757331795228,0.18378339,111940.0,111930.0,0.87629007]
[1757331795645,0.21060948,111940.0,111930.0,0.87571007]
[1757331796063,0.21060948,111940.0,111930.0,0.47571007]
[1757331796276,0.20553948,111940.0,111930.0,0.47629007]
[1757331796697,0.20553948,111940.0,111930.0,0.47571007]
[1757331797115,0.20553948,111940.0,111930.0,0.16509771]
[1757331797521,0.20553948,111940.0,111930.0,0.47571007]
[1757331798566,0.20553948,111940.0,111930.0,0.15614934]
[1757331798772,0.20553948,111940.0,111930.0,0.4667617]
[1757331802588,0.20553948,111940.0,111930.0,0.37484571]
[1757331806817,0.20553948,111940.0,111930.0,0.06423335]
[1757331807474,0.20553948,111940.0,111930.0,0.37484571]
[1757331807721,0.20553948,111940.0,111930.0,0.06423335]
[1757331808421,0.1786831,111930.0,111920.0,0.77484571]
[1757331808605,0.1786831,111930.0,111920.0,0.8667617]
[1757331808807,0.1786831,111930.0,111920.0,0.4667617]
[1757331808947,0.1786831,111930.0,111920.0,0.78617998]
[1757331809162,0.1786831,111930.0,111920.0,1.18617998]
[1757331810091,0.1786831,111930.0,111920.0,1.17737406]
[1757331810564,0.20551202,111930.0,111920.0,1.17737406]
[1757331811408,0.20551202,111930.0,111920.0,1.17737406]
[1757331814015,0.20551202,111930.0,111920.0,1.18634272]
[1757331814961,0.02682892,111930.0,111920.0,1.18634272]
[1757331815180,0.20551202,111930.0,111920.0,1.69187201]
[1757331815617,0.20551202,111930.0,111920.0,1.7186981]
[1757331816045,0.1786831,111930.0,111920.0,1.7186981]
[1757331817365,0.16795491,111930.0,111920.0,1.7186981]
[1757331818738,0.16795491,111930.0,111920.0,1.22938667]
[1757331819144,0.16795491,111930.0,111920.0,1.40808574]
[1757331819380,0.16795491,111930.0,111920.0,1.22938667]
[1757331820055,0.16795491,111930.0,111920.0,1.40808574]
[1757331820886,0.16795491,111930.0,111920.0,1.22938667]
[1757331821303,0.16795491,111930.0,111920.0,1.20256058]
[1757331821535,0.19478337,111930.0,111920.0,1.20256058]
[1757331825038,0.19478337,111930.0,111920.0,0.80256058]
[1757331826181,0.19478337,111930.0,111920.0,0.18133586]
[1757331826386,0.19478337,111930.0,111920.0,0.49194822]
[1757331826705,0.19478337,111930.0,111920.0,0.89194822]
[1757331828569,0.19478337,111930.0,111920.0,0.48297956]
[1757331828882,0.19478337,111930.0,111920.0,0.46683403]
[1757331829097,0.19478337,111930.0,111920.0,0.15622167]
[1757331829332,0.19478337,111930.0,111920.0,0.46683403]
[1757331830769,0.19478337,111930.0,111920.0,0.46682688]
[1757331830973,0.19478337,111930.0,111920.0,0.46682698]
[1757331838213,0.19478337,111930.0,111920.0,0.15621462]
[1757331846406,0.16795491,111930.0,111920.0,0.15621462]
[1757331846619,0.17074683,111930.0,111920.0,0.15621462]
[1757331846800,0.17074683,111930.0,111920.0,0.15616672]
[1757331847762,0.16795491,111930.0,111920.0,0.46679513]
[1757331848648,0.16795491,111930.0,111920.0,0.09186809]
[1757331849110,0.16795491,111930.0,111920.0,0.4024965]
[1757331855484,0.16795491,111930.0,111920.0,0.48294771]
[1757331860215,0.17317491,111930.0,111920.0,0.48294771]
[1757331860945,0.17596683,111930.0,111920.0,0.48294771]
[1757331864788,0.17596683,111930.0,111920.0,0.1723193]
[1757331865000,0.17596683,111930.0,111920.0,0.48352771]
[1757331866950,0.17317491,111930.0,111920.0,0.48352771]
[1757331868916,0.17114491,111930.0,111920.0,0.48352771]
[1757331871993,0.16795491,111930.0,111920.0,0.48352771]
[1757331872211,0.20554392,111940.0,111920.0,1.37321519]
[1757331872435,0.17871339,111940.0,111930.0,0.68562004]
[1757331872694,0.17871339,111940.0,111930.0,0.71317281]
[1757331872913,0.17871339,111940.0,111930.0,0.71375281]
[1757331873990,0.17871339,111940.0,111930.0,0.79420402]
[1757331874322,0.17871339,111940.0,111930.0,0.71375281]
[1757331874710,0.17871339,111940.0,111930.0,0.75295631]
[1757331875843,4.625e-05,111940.0,111930.0,1.01245062]
[1757331876046,0.17867339,111940.0,111930.0,0.94074941]
[1757331876471,0.17867339,111940.0,111930.0,1.02110436]
[1757331876694,0.17867339,111940.0,111930.0,1.42110436]
[1757331877236,6.25e-06,111940.0,111930.0,1.78204318]
[1757331877448,6.25e-06,111940.0,111930.0,1.70168823]
[1757331877659,0.17865125,111950.0,111940.0,0.17866714]
[1757331877874,0.17865125,111950.0,111940.0,0.58215154]
[1757331878349,0.17865125,111950.0,111940.0,0.66241738]
[1757331878629,0.17865125,111950.0,111940.0,1.06241738]
[1757331882303,0.17865125,111950.0,111940.0,0.75178897]
[1757331882523,0.17865125,111950.0,111940.0,0.88375024]
[1757331882760,0.18763766,111960.0,111940.0,1.06241738]
[1757331882989,0.1787059,111960.0,111950.0,0.95631159]
[1757331883236,0.1787059,111960.0,111950.0,0.95689159]
[1757331884037,0.1787059,111960.0,111950.0,0.64626318]
[1757331884715,0.1787059,111960.0,111950.0,0.467612]
[1757331884947,0.1787059,111960.0,111950.0,0.467252]
[1757331885876,0.1818559,111960.0,111950.0,0.467252]
[1757331886048,0.1818559,111960.0,111950.0,0.867252]
[1757331886280,0.1787059,111960.0,111950.0,0.867252]
[1757331888706,0.1787059,111960.0,111950.0,1.04590318]
[1757331888955,0.1787059,111960.0,111950.0,1.04626318]
[1757331889162,0.1787059,111960.0,111950.0,0.867612]
[1757331889647,0.1787059,111960.0,111950.0,1.04590318]
[1757331890052,0.1787059,111960.0,111950.0,1.04626318]
[1757331890650,0.1787059,111960.0,111950.0,0.867612]
[1757331891003,0.1787059,111960.0,111950.0,0.867252]
[1757331891469,0.1787059,111960.0,111950.0,1.04590318]
[1757331891669,0.1787059,111960.0,111950.0,1.04626318]
[1757331892363,0.1787059,111960.0,111950.0,1.35689159]
[1757331892607,0.17863522,111960.0,111950.0,1.35689159]
[1757331893519,0.1787264,111970.0,111950.0,1.29276399]
[1757331893731,0.1787264,111970.0,111960.0,0.6853171]
[1757331893924,0.1787264,111970.0,111960.0,0.77759309]
[1757331894144,0.1787264,111970.0,111960.0,0.77817309]
[1757331894357,0.1787264,111970.0,111960.0,1.11411281]
[1757331894562,0.1787264,111970.0,111960.0,1.15466366]
[1757331894883,0.1787264,111970.0,111960.0,1.39735916]
[1757331896604,0.1787264,111970.0,111960.0,1.22764883]
[1757331897406,0.1787264,111970.0,111960.0,1.22728883]
[1757331897629,0.1787264,111970.0,111960.0,1.22764883]
[1757331898311,0.1787264,111970.0,111960.0,1.40628405]
[1757331898539,0.18835559,111980.0,111960.0,1.74628405]
[1757331898767,0.18835559,111980.0,111970.0,0.46661834]
[1757331898915,0.18835559,111980.0,111970.0,0.64559761]
[1757331899117,0.18835559,111980.0,111970.0,0.46755834]
[1757331899306,0.18835559,111980.0,111970.0,1.04617761]
[1757331899513,0.17942543,111980.0,111970.0,1.04617761]
[1757331903313,0.17933451,111980.0,111970.0,0.98210367]
[1757331904201,0.18798703,111990.0,111970.0,0.99085367]
[1757331904435,0.18798703,111990.0,111980.0,0.37475734]
[1757331904632,0.18798703,111990.0,111980.0,0.46703333]
[1757331904928,0.18798703,111990.0,111980.0,0.46761333]
[1757331905062,0.18798703,111990.0,111980.0,0.86761333]
[1757331905285,0.18798703,111990.0,111980.0,1.17824174]
[1757331905740,0.18798703,111990.0,111980.0,1.35684506]
[1757331905945,0.18798703,111990.0,111980.0,1.04621665]
[1757331906372,0.18798703,111990.0,111980.0,1.48740879]
[1757331906591,0.18798703,111990.0,111980.0,1.1772675]
[1757331906796,0.18798703,111990.0,111980.0,0.55698492]
[1757331907006,0.18798703,111990.0,111980.0,1.1772675]
[1757331912976,0.18798703,111990.0,111980.0,0.55662492]
[1757331913185,0.18798703,111990.0,111980.0,1.1769075]
[1757331913396,0.18798703,111990.0,111980.0,1.1772675]
[1757331916093,0.18798703,111990.0,111980.0,0.55698492]
[1757331916344,0.18798703,111990.0,111980.0,1.1772675]
[1757331916577,0.18798703,111990.0,111980.0,0.55698492]
[1757331916819,0.18798703,111990.0,111980.0,1.1772675]
[1757331917177,0.18798703,111990.0,111980.0,0.55698492]
[1757331917370,0.18798703,111990.0,111980.0,1.1772675]
[1757331918706,0.18798703,111990.0,111980.0,0.93536621]
[1757331918915,0.18798703,111990.0,111980.0,1.2455075]
[1757331919215,0.18798703,111990.0,111980.0,0.93536621]
[1757331922130,0.50318832,111990.0,111980.0,0.62464492]
[1757331922768,0.18798703,111990.0,111980.0,0.62522492]
[1757331922981,0.50116832,111990.0,111980.0,0.62522492]
[1757331923390,0.50116832,111990.0,111980.0,0.77482492]
[1757331923986,0.50116832,111990.0,111980.0,0.62522492]
[1757331924203,0.19102703,111990.0,111980.0,0.77490492]
[1757331924408,0.50116832,111990.0,111980.0,0.77490492]
[1757331924610,0.50318832,111990.0,111980.0,0.77490492]
[1757331925073,0.50318832,111990.0,111980.0,0.62522492]
[1757331925278,0.50318832,111990.0,111980.0,0.22464492]
[1757331925486,0.50318832,111990.0,111980.0,0.37428492]
[1757331925698,0.50318832,111990.0,111980.0,0.77428492]
[1757331927666,0.50318832,111990.0,111980.0,0.37428492]
[1757331927865,0.19304703,111990.0,111980.0,0.37428492]
[1757331928104,0.50318832,111990.0,111980.0,0.37428492]
[1757331930352,0.50318832,111990.0,111980.0,0.31015599]
[1757331931290,0.19304703,111990.0,111980.0,0.31073599]
[1757331931513,0.18798703,111990.0,111980.0,0.39100183]
[1757331931735,0.18798703,111990.0,111980.0,0.79100183]
[1757331932430,0.18798703,111990.0,111980.0,1.10114312]
[1757331932711,0.19102703,111990.0,111980.0,1.10114312]
[1757331932956,0.19102703,111990.0,111980.0,0.79100183]
[1757331933455,0.19102703,111990.0,111980.0,1.10114312]
[1757331934402,0.18798703,111990.0,111980.0,1.10114312]
[1757331935067,0.18798703,111990.0,111980.0,0.79100183]
[1757331935302,0.18798703,111990.0,111980.0,1.10114312]
[1757331935552,0.49812832,111990.0,111980.0,0.79100183]
[1757331935765,0.50116832,111990.0,111980.0,0.79100183]
[1757331936027,0.50318832,111990.0,111980.0,0.79086183]
[1757331936226,0.19304703,111990.0,111980.0,0.79086183]
[1757331936448,0.19304703,111990.0,111980.0,0.79144183]
[1757331936679,0.50318832,111990.0,111980.0,0.79144183]
[1757331938132,0.19304703,111990.0,111980.0,0.79144183]
[1757331938354,0.50318832,111990.0,111980.0,0.79144183]
[1757331938840,0.50318832,111990.0,111980.0,0.39144183]
[1757331939200,0.50318832,111990.0,111980.0,0.79144183]
[1757331942089,0.50318832,111990.0,111980.0,0.39144183]
[1757331942697,0.50318832,111990.0,111980.0,0.79144183]
[1757331942945,0.19102703,111990.0,111980.0,0.79144183]
[1757331943358,0.50318832,111990.0,111980.0,0.79144183]
[1757331945382,0.19304703,111990.0,111980.0,0.79144183]
[1757331945593,0.50318832,111990.0,111980.0,0.79086183]
[1757331945823,0.50318832,111990.0,111980.0,0.39086183]
[1757331946167,0.50318832,111990.0,111980.0,0.79086183]
[1757331947795,0.50318832,111990.0,111980.0,0.64078183]
[1757331947938,0.19304703,111990.0,111980.0,0.79082183]
[1757331948141,0.50318832,111990.0,111980.0,0.64078183]
[1757331948524,0.50318832,111990.0,111980.0,0.79082183]
[1757331949095,0.50318832,111990.0,111980.0,0.79078183]
[1757331949312,0.50318832,111990.0,111980.0,0.39078183]
[1757331949723,0.50318832,111990.0,111980.0,0.79078183]
[1757331950974,0.19304703,111990.0,111980.0,0.79078183]
[1757331951161,0.50318832,111990.0,111980.0,0.79078183]
[1757331951839,0.50318832,111990.0,111980.0,0.39078183]
[1757331952894,0.19304703,111990.0,111980.0,0.39136183]
[1757331953073,0.50116832,111990.0,111980.0,0.39136183]
[1757331953419,0.50331832,111990.0,111980.0,0.39136183]
[1757331954232,0.50331832,111990.0,111980.0,0.39078183]
[1757331956518,0.19317703,111990.0,111980.0,0.39078183]
[1757331956698,0.50331832,111990.0,111980.0,0.39078183]
[1757331957581,0.50331832,111990.0,111980.0,0.39062183]
[1757331957910,0.50331832,111990.0,111980.0,0.64078183]
[1757331958134,0.81345961,111990.0,111980.0,0.29870584]
[1757331958351,0.81345961,111990.0,111980.0,0.28276266]
[1757331958553,0.50331832,111990.0,111980.0,0.28276266]
[1757331958765,0.5301362,111990.0,111980.0,0.28276266]
[1757331959441,0.53922961,111990.0,111980.0,0.28276266]
[1757331961449,0.5301362,111990.0,111980.0,0.28276266]
[1757331963533,0.53918484,111990.0,111980.0,0.28276266]
[1757331965138,0.5301362,111990.0,111980.0,0.28276266]
[1757331966346,0.5301362,111990.0,111980.0,0.21844]
[1757331968411,0.53033953,111990.0,111980.0,0.21844]
[1757331971149,0.21784491,111990.0,111980.0,0.28276266]
[1757331971373,0.20580525,111990.0,111980.0,0.88050977]
[1757331971603,0.17898737,111990.0,111980.0,0.70190645]
[1757331971805,0.16826469,111990.0,111980.0,1.10190645]
[1757331972066,0.16826469,111990.0,111980.0,1.10154645]
[1757331976857,0.16826469,111990.0,111980.0,1.54334977]
[1757331977793,0.16826469,111990.0,111980.0,1.23300515]
[1757331977996,0.16826469,111990.0,111980.0,1.54334977]
[1757331978207,0.16826469,111990.0,111980.0,1.54370977]
[1757331978367,0.16826469,111990.0,111980.0,1.23300515]
[1757331978554,0.16826469,111990.0,111980.0,1.54334977]
[1757331978781,0.16826469,111990.0,111980.0,1.36474645]
[1757331980098,0.16826469,111990.0,111980.0,1.54334977]
[1757331980337,0.16826469,111990.0,111980.0,1.05440183]
[1757331980776,0.16826469,111990.0,111980.0,1.36474645]
[1757331980982,0.16826469,111990.0,111980.0,1.54338977]
[1757331981434,0.16826469,111990.0,111980.0,1.36478645]
[1757331982104,0.16826469,111990.0,111980.0,1.36514645]
[1757331982533,0.16826469,111990.0,111980.0,1.54374977]
[1757331985974,0.16826469,111990.0,111980.0,1.36514645]
[1757331987207,0.16826469,111990.0,111980.0,1.54374977]
[1757331988536,0.16826469,111990.0,111980.0,1.36514645]
[1757331988744,0.16826469,111990.0,111980.0,1.36478645]
[1757331990902,0.16826469,111990.0,111980.0,1.21494645]
[1757331991115,0.16826469,111990.0,111980.0,1.36446645]
[1757331995091,0.16826469,111990.0,111980.0,1.21494645]
[1757331995311,0.16826469,111990.0,111980.0,1.36438645]
[1757331998349,0.15754203,111990.0,111980.0,1.36438645]
[1757332000211,0.15754203,111990.0,111980.0,1.21494645]
[1757332000435,0.15754203,111990.0,111980.0,1.36430645]
[1757332000658,0.16254203,111990.0,111980.0,0.79018183]
[1757332000877,0.16052203,111990.0,111980.0,0.79076183]
[1757332001202,0.15754203,111990.0,111980.0,0.79076183]
[1757332002005,0.15754203,111990.0,111980.0,1.10110645]
[1757332003996,0.15754203,111990.0,111980.0,0.79076183]
[1757332004216,0.16052203,111990.0,111980.0,0.64140183]
[1757332004408,0.16052203,111990.0,111980.0,0.79076183]
[1757332004668,0.16254203,111990.0,111980.0,0.79076183]
[1757332007145,0.16254203,111990.0,111980.0,0.39076183]
[1757332007680,0.16254203,111990.0,111980.0,0.79076183]
[1757332008399,0.15181906,111990.0,111980.0,0.79076183]
[1757332008927,0.15181906,111990.0,111980.0,0.64140183]
[1757332009128,0.15181906,111990.0,111980.0,0.79076183]
[1757332010710,0.15181906,111990.0,111980.0,0.39076183]
[1757332011121,0.15181906,111990.0,111980.0,0.79076183]
[1757332014138,0.15181906,111990.0,111980.0,0.39076183]
[1757332014573,0.15181906,111990.0,111980.0,0.79076183]
[1757332015170,0.15181906,111990.0,111980.0,1.10110645]
[1757332015709,0.14979906,111990.0,111980.0,1.10110645]
[1757332016139,0.14681906,111990.0,111980.0,1.10110645]
[1757332016873,0.20909702,112000.0,111980.0,1.28006977]
[1757332017098,0.17858737,111990.0,111980.0,0.72844916]
[1757332017283,0.17858737,111990.0,111980.0,0.96972515]
[1757332018379,0.17858737,111990.0,111980.0,1.28106977]
[1757332018592,0.17858737,111990.0,111980.0,1.54426977]
[1757332018784,0.17858737,111990.0,111980.0,1.54626977]
[1757332019128,0.17858737,111990.0,111980.0,1.23392515]
[1757332019353,0.17858737,111990.0,111980.0,1.54426977]
[1757332020413,0.17858737,111990.0,111980.0,1.54326977]
[1757332021078,0.17858737,111990.0,111980.0,1.23292515]
[1757332021297,0.17858737,111990.0,111980.0,1.54326977]
[1757332022561,0.17858737,111990.0,111980.0,1.36466645]
[1757332022773,0.17858737,111990.0,111980.0,1.54326977]
[1757332023203,0.17858737,111990.0,111980.0,1.36430645]
[1757332024151,0.17858737,111990.0,111980.0,1.05396183]
[1757332024370,0.17858737,111990.0,111980.0,1.36430645]
[1757332026400,0.17858737,111990.0,111980.0,1.54290977]
[1757332026594,0.17858737,111990.0,111980.0,1.54326977]
[1757332026801,0.16786473,111990.0,111980.0,1.54326977]
[1757332028323,0.16786473,111990.0,111980.0,1.85328883]
[1757332028667,0.16786473,111990.0,111980.0,1.77302299]
[1757332028892,0.20588702,112000.0,111980.0,1.59020896]
[1757332029088,0.0004,112000.0,111990.0,1.46097109]
[1757332029329,0.0004,112000.0,111990.0,1.46155109]
[1757332029720,0.0004,112000.0,111990.0,1.78116704]
[1757332029955,0.00025722,112000.0,111990.0,1.92039751]
[1757332030404,0.00025722,112000.0,111990.0,1.94133633]
[1757332032970,0.00025722,112000.0,111990.0,1.94333633]
[1757332033367,0.00025722,112000.0,111990.0,2.20653633]
[1757332033580,0.00025722,112000.0,111990.0,2.24596381]
[1757332033800,0.00025722,112000.0,111990.0,2.24696381]
[1757332036048,0.00025722,112000.0,111990.0,2.25571381]
[1757332037036,3.4e-06,112000.0,111990.0,2.25571381]
[1757332037444,3.4e-06,112000.0,111990.0,2.24696381]
[1757332038472,3.4e-06,112000.0,111990.0,2.09760381]
[1757332038697,3.4e-06,112000.0,111990.0,2.24692381]
[1757332038997,0.17895562,112010.0,112000.0,0.17857142]
[1757332039197,0.17895562,112010.0,112000.0,1.38413573]
[1757332039401,0.17895562,112010.0,112000.0,1.38449573]
[1757332039617,0.17895562,112010.0,112000.0,1.78449573]
[1757332040161,0.17895562,112010.0,112000.0,1.8114412]
[1757332041959,0.0004,112010.0,112000.0,1.8114412]
[1757332046989,0.17895548,112010.0,112000.0,1.8114412]
[1757332047687,0.0004,112010.0,112000.0,1.8110812]
[1757332047836,0.0004,112010.0,112000.0,2.1514412]
[1757332048044,0.0004,112010.0,112000.0,2.48256186]
[1757332048245,5.3e-06,112010.0,112000.0,2.17238002]
[1757332048446,5.3e-06,112010.0,112000.0,2.09219538]
[1757332049215,0.18796847,112030.0,112020.0,0.17853954]